[Event "*** Titled Tuesday 3|2 Blitz"]
[Site "Chess.com"]
[Date "2017.06.06"]
[Round "3"]
[White "DryCounty"]
[Black "swayamsm"]
[Result "1-0"]
[WhiteElo "2472"]
[BlackElo "2430"]
[TimeControl "180+2"]
[EndTime "14:28:11 PDT"]
[Termination "DryCounty won by resignation"]

1. Nf3 {[%clk 0:03:02]} 1... Nf6 {[%clk 0:03:00.4]} 2. c4 {[%clk 0:03:02.5]}
2... c5 {[%clk 0:02:58.1]} 3. Nc3 {[%clk 0:03:02.5]} 3... g6 {[%clk 0:02:53.9]}
4. e4 {[%clk 0:03:01.9]} 4... d6 {[%clk 0:02:52.6]} 5. d4 {[%clk 0:03:01.8]}
5... cxd4 {[%clk 0:02:51.1]} 6. Nxd4 {[%clk 0:03:02.1]} 6... Bg7 {[%clk
0:02:52.7]} 7. Be2 {[%clk 0:03:02.4]} 7... O-O {[%clk 0:02:50.7]} 8. O-O {[%clk
0:03:02.9]} 8... Nc6 {[%clk 0:02:51.6]} 9. Be3 {[%clk 0:03:03.5]} 9... Bd7
{[%clk 0:02:48.7]} 10. Qd2 {[%clk 0:03:01.7]} 10... Rc8 {[%clk 0:02:49.9]} 11.
f3 {[%clk 0:02:55.1]} 11... Qa5 {[%clk 0:02:49.3]} 12. Nb3 {[%clk 0:02:53.4]}
12... Qc7 {[%clk 0:02:42]} 13. Rac1 {[%clk 0:02:49.6]} 13... Qb8 {[%clk
0:02:42.5]} 14. Nd5 {[%clk 0:02:38]} 14... Rfe8 {[%clk 0:02:36.3]} 15. c5 {[%clk
0:02:30.9]} 15... Be6 {[%clk 0:02:32.2]} 16. cxd6 {[%clk 0:02:24.5]} 16... Qxd6
{[%clk 0:02:34.1]} 17. Bf4 {[%clk 0:01:58.7]} 17... Qd8 {[%clk 0:02:26.7]} 18.
Rfd1 {[%clk 0:01:35.3]} 18... Nh5 {[%clk 0:02:17.5]} 19. Be3 {[%clk 0:01:29.6]}
19... Kh8 {[%clk 0:02:15.7]} 20. Nc5 {[%clk 0:01:26.3]} 20... b6 {[%clk
0:01:58.1]} 21. Nxe6 {[%clk 0:01:19.8]} 21... fxe6 {[%clk 0:02:00]} 22. Bb5
{[%clk 0:01:10.5]} 22... exd5 {[%clk 0:01:55.4]} 23. Bxc6 {[%clk 0:01:07.7]}
23... Rf8 {[%clk 0:01:05.8]} 24. Bxd5 {[%clk 0:00:57.1]} 24... Rxc1 {[%clk
0:01:04.9]} 25. Qxc1 {[%clk 0:00:55.4]} 25... Qd6 {[%clk 0:01:02.4]} 26. Qd2
{[%clk 0:00:40.2]} 26... Rd8 {[%clk 0:00:55.6]} 27. Bb3 {[%clk 0:00:35.8]} 27...
Qxd2 {[%clk 0:00:55.9]} 28. Rxd2 {[%clk 0:00:36.7]} 28... Rxd2 {[%clk
0:00:57.3]} 29. Bxd2 {[%clk 0:00:37.9]} 29... Bxb2 {[%clk 0:00:58.7]} 30. f4
{[%clk 0:00:31.6]} 30... Bd4+ {[%clk 0:00:59.3]} 31. Kf1 {[%clk 0:00:32.2]}
31... Nf6 {[%clk 0:01:00.7]} 32. e5 {[%clk 0:00:28]} 32... Ne4 {[%clk
0:00:56.9]} 33. Bb4 {[%clk 0:00:28.2]} 33... Bc5 {[%clk 0:00:43.5]} 34. Be1
{[%clk 0:00:28.5]} 34... Be3 {[%clk 0:00:39.7]} 35. g3 {[%clk 0:00:19.3]} 35...
Nc5 {[%clk 0:00:35.7]} 36. Bc4 {[%clk 0:00:17.4]} 36... Kg7 {[%clk 0:00:34.9]}
37. Bc3 {[%clk 0:00:17.9]} 37... Kf8 {[%clk 0:00:33.8]} 38. Ke2 {[%clk
0:00:17.5]} 38... Bg1 {[%clk 0:00:33.4]} 39. Kf3 {[%clk 0:00:18.2]} 39... a5
{[%clk 0:00:30.3]} 40. h3 {[%clk 0:00:18.5]} 40... Na4 {[%clk 0:00:30.8]} 41.
Bd2 {[%clk 0:00:17]} 41... Bd4 {[%clk 0:00:25.4]} 42. Ke4 {[%clk 0:00:16.1]}
42... Bc3 {[%clk 0:00:23]} 43. Be3 {[%clk 0:00:16.3]} 43... Be1 {[%clk
0:00:23.9]} 44. g4 {[%clk 0:00:16.1]} 44... b5 {[%clk 0:00:25.2]} 45. Bb3 {[%clk
0:00:15]} 45... Nc3+ {[%clk 0:00:25.5]} 46. Kd3 {[%clk 0:00:16]} 46... a4 {[%clk
0:00:27.1]} 47. Be6 {[%clk 0:00:16.8]} 47... b4 {[%clk 0:00:25.9]} 48. Bc5
{[%clk 0:00:15.9]} 48... b3 {[%clk 0:00:15.6]} 49. axb3 {[%clk 0:00:16.1]} 49...
axb3 {[%clk 0:00:16.9]} 50. Bxb3 {[%clk 0:00:15.8]} 50... Nb5 {[%clk 0:00:18.8]}
51. f5 {[%clk 0:00:15.3]} 51... gxf5 {[%clk 0:00:18.4]} 52. gxf5 {[%clk
0:00:16.4]} 52... Bg3 {[%clk 0:00:13.7]} 53. f6 {[%clk 0:00:14.2]} 53... Nc7
{[%clk 0:00:10.4]} 54. Bxe7+ {[%clk 0:00:12.1]} 54... Ke8 {[%clk 0:00:11.9]} 55.
Bd6 {[%clk 0:00:13.1]} 55... Kd7 {[%clk 0:00:09]} 56. f7 {[%clk 0:00:12.7]} 1-0

[Event "*** Titled Tuesday 3|2 Blitz"]
[Site "Chess.com"]
[Date "2017.06.06"]
[Round "3"]
[White "Rodalquilar"]
[Black "chessking2151"]
[Result "1-0"]
[WhiteElo "2536"]
[BlackElo "2334"]
[TimeControl "180+2"]
[EndTime "14:28:14 PDT"]
[Termination "Rodalquilar won by resignation"]

1. d4 {[%clk 0:03:02]} 1... Nf6 {[%clk 0:03:00.4]} 2. Bf4 {[%clk 0:03:02.9]}
2... e6 {[%clk 0:02:59.6]} 3. e3 {[%clk 0:03:03.8]} 3... b6 {[%clk 0:03:00.5]}
4. Nd2 {[%clk 0:03:03.6]} 4... Bb7 {[%clk 0:03:00.5]} 5. Ngf3 {[%clk 0:03:04.8]}
5... c5 {[%clk 0:03:01.6]} 6. c3 {[%clk 0:03:05.6]} 6... d6 {[%clk 0:02:57.5]}
7. Bd3 {[%clk 0:03:06]} 7... Nbd7 {[%clk 0:02:56.6]} 8. O-O {[%clk 0:02:58.7]}
8... Be7 {[%clk 0:02:54.5]} 9. h3 {[%clk 0:02:59.4]} 9... O-O {[%clk 0:02:52.7]}
10. Bh2 {[%clk 0:03:00.4]} 10... h6 {[%clk 0:02:49.8]} 11. a4 {[%clk 0:03:00.8]}
11... a6 {[%clk 0:02:46.4]} 12. Qe2 {[%clk 0:02:49.9]} 12... Re8 {[%clk
0:02:22.6]} 13. e4 {[%clk 0:02:23.7]} 13... Bf8 {[%clk 0:02:17.7]} 14. e5 {[%clk
0:02:21.4]} 14... dxe5 {[%clk 0:01:56.8]} 15. dxe5 {[%clk 0:02:23.3]} 15... Nd5
{[%clk 0:01:57.5]} 16. Ne4 {[%clk 0:01:55.2]} 16... Qc7 {[%clk 0:01:28.3]} 17.
Nd6 {[%clk 0:01:21.5]} 17... Bxd6 {[%clk 0:01:26.1]} 18. exd6 {[%clk 0:01:23.4]}
18... Qc6 {[%clk 0:01:25.4]} 19. Rfd1 {[%clk 0:01:14.5]} 19... Red8 {[%clk
0:00:40.6]} 20. Be4 {[%clk 0:01:10]} 20... N7f6 {[%clk 0:00:33.9]} 21. Ne5
{[%clk 0:00:58]} 21... Qc8 {[%clk 0:00:17.3]} 22. Qf3 {[%clk 0:00:23.9]} 22...
Nxe4 {[%clk 0:00:09.4]} 23. Qxf7+ {[%clk 0:00:24.9]} 23... Kh7 {[%clk
0:00:08.6]} 24. d7 {[%clk 0:00:13]} 24... Qc7 {[%clk 0:00:05.2]} 25. Qg6+ {[%clk
0:00:13.8]} 25... Kg8 {[%clk 0:00:05.9]} 26. Qxe6+ {[%clk 0:00:11.3]} 26... Kh7
{[%clk 0:00:07.1]} 27. Qg6+ {[%clk 0:00:08.3]} 27... Kg8 {[%clk 0:00:07.8]} 28.
Qf7+ {[%clk 0:00:05.1]} 28... Kh7 {[%clk 0:00:07.5]} 29. Qf5+ {[%clk 0:00:06.1]}
29... Kg8 {[%clk 0:00:08.5]} 30. Qxe4 {[%clk 0:00:07.2]} 30... Nf6 {[%clk
0:00:09.1]} 31. Qc4+ {[%clk 0:00:08.1]} 31... Kh7 {[%clk 0:00:10.4]} 32. Qd3+
{[%clk 0:00:08]} 32... Be4 {[%clk 0:00:10.8]} 33. Qc4 {[%clk 0:00:05.2]} 33...
Qb7 {[%clk 0:00:11.4]} 34. f3 {[%clk 0:00:06]} 34... Bf5 {[%clk 0:00:11.9]} 35.
Rd6 {[%clk 0:00:05.8]} 35... Bxd7 {[%clk 0:00:12.1]} 36. Qd3+ {[%clk 0:00:06.5]}
36... Kg8 {[%clk 0:00:10.8]} 37. Rd1 {[%clk 0:00:07.1]} 37... Qc7 {[%clk
0:00:11.5]} 38. Nxd7 {[%clk 0:00:08.1]} 38... Rxd7 {[%clk 0:00:11.5]} 39. Rxd7
{[%clk 0:00:09]} 39... Qxd7 {[%clk 0:00:13]} 40. Qxd7 {[%clk 0:00:10.2]} 40...
Nxd7 {[%clk 0:00:14.9]} 41. Rxd7 {[%clk 0:00:11.4]} 41... b5 {[%clk 0:00:16.8]}
42. axb5 {[%clk 0:00:11.3]} 42... axb5 {[%clk 0:00:18.7]} 43. Be5 {[%clk
0:00:12.7]} 43... Ra1+ {[%clk 0:00:19.7]} 44. Kh2 {[%clk 0:00:13.6]} 44... Ra2
{[%clk 0:00:21.6]} 45. b4 {[%clk 0:00:13.9]} 45... c4 {[%clk 0:00:22.1]} 46.
Rxg7+ {[%clk 0:00:14.7]} 46... Kf8 {[%clk 0:00:22.7]} 47. Rb7 {[%clk 0:00:16.6]}
47... Re2 {[%clk 0:00:23.7]} 48. Bd4 {[%clk 0:00:17.8]} 48... Rd2 {[%clk
0:00:24.6]} 49. Rxb5 {[%clk 0:00:18.9]} 49... h5 {[%clk 0:00:22.2]} 50. Rxh5
{[%clk 0:00:19.5]} 50... Kf7 {[%clk 0:00:12.8]} 51. Rc5 {[%clk 0:00:20.1]} 51...
Ke6 {[%clk 0:00:14.2]} 52. Rxc4 {[%clk 0:00:21.3]} 52... Kd5 {[%clk 0:00:14.5]}
53. Rc5+ {[%clk 0:00:22.5]} 53... Kd6 {[%clk 0:00:14.2]} 54. b5 {[%clk
0:00:22.9]} 54... Rb2 {[%clk 0:00:13.6]} 55. c4 {[%clk 0:00:21.7]} 55... Rd2
{[%clk 0:00:05.8]} 56. Rd5+ {[%clk 0:00:22.8]} 56... Ke6 {[%clk 0:00:04.4]} 57.
b6 {[%clk 0:00:23.3]} 57... Rb2 {[%clk 0:00:02.8]} 58. Bxb2 {[%clk 0:00:23.9]}
58... Ke7 {[%clk 0:00:03.1]} 59. b7 {[%clk 0:00:24.9]} 59... Ke6 {[%clk
0:00:04.1]} 60. b8=Q {[%clk 0:00:25.8]} 60... Kf7 {[%clk 0:00:05.4]} 61. Qb7+
{[%clk 0:00:25.1]} 1-0

[Event "*** Titled Tuesday 3|2 Blitz"]
[Site "Chess.com"]
[Date "2017.06.06"]
[Round "3"]
[White "ANLex1963"]
[Black "ViIIagra"]
[Result "0-1"]
[WhiteElo "2207"]
[BlackElo "2592"]
[TimeControl "180+2"]
[EndTime "14:28:59 PDT"]
[Termination "ViIIagra won by resignation"]

1. Nf3 {[%clk 0:03:02]} 1... d5 {[%clk 0:02:59.6]} 2. d4 {[%clk 0:03:01.7]} 2...
e6 {[%clk 0:02:51.8]} 3. c4 {[%clk 0:03:01.5]} 3... Be7 {[%clk 0:02:53.5]} 4.
Nc3 {[%clk 0:03:01.3]} 4... Nf6 {[%clk 0:02:55.1]} 5. Bf4 {[%clk 0:03:01.7]}
5... O-O {[%clk 0:02:56]} 6. e3 {[%clk 0:03:02.2]} 6... b6 {[%clk 0:02:54.5]} 7.
Qc2 {[%clk 0:03:01]} 7... Bb7 {[%clk 0:02:55.2]} 8. Rd1 {[%clk 0:02:57.4]} 8...
Nbd7 {[%clk 0:02:55.6]} 9. a3 {[%clk 0:02:55.8]} 9... a6 {[%clk 0:02:55.1]} 10.
Be2 {[%clk 0:02:55]} 10... c5 {[%clk 0:02:56]} 11. dxc5 {[%clk 0:02:54.1]} 11...
Nxc5 {[%clk 0:02:57.9]} 12. O-O {[%clk 0:02:52.4]} 12... Rc8 {[%clk 0:02:58]}
13. b4 {[%clk 0:02:47.2]} 13... Nce4 {[%clk 0:02:56]} 14. Nxe4 {[%clk
0:02:42.5]} 14... Nxe4 {[%clk 0:02:57.9]} 15. Qb3 {[%clk 0:02:38]} 15... Bf6
{[%clk 0:02:55.4]} 16. Be5 {[%clk 0:02:33.1]} 16... Qe7 {[%clk 0:02:49.3]} 17.
Bxf6 {[%clk 0:02:24.6]} 17... Qxf6 {[%clk 0:02:51.2]} 18. Nd4 {[%clk 0:02:13.7]}
18... e5 {[%clk 0:02:35.8]} 19. Nf3 {[%clk 0:02:08.4]} 19... dxc4 {[%clk
0:02:18.2]} 20. Bxc4 {[%clk 0:02:08.2]} 20... b5 {[%clk 0:02:15.2]} 21. Bd5
{[%clk 0:02:04.9]} 21... Bxd5 {[%clk 0:02:15.9]} 22. Rxd5 {[%clk 0:02:03.5]}
22... Nc3 {[%clk 0:02:11.5]} 23. Rxe5 {[%clk 0:01:56.2]} 23... Rfd8 {[%clk
0:02:12.4]} 24. h3 {[%clk 0:01:52.7]} 24... Na4 {[%clk 0:02:05]} 25. Rd1 {[%clk
0:01:44.5]} 25... h6 {[%clk 0:02:01]} 26. Red5 {[%clk 0:01:40.9]} 26... Rxd5
{[%clk 0:01:58.8]} 27. Rxd5 {[%clk 0:01:40.2]} 27... Rc3 {[%clk 0:01:38.1]} 28.
Qd1 {[%clk 0:01:32.8]} 28... Rxa3 {[%clk 0:01:38.7]} 29. Rd8+ {[%clk 0:01:31.5]}
29... Kh7 {[%clk 0:01:39.4]} 30. Qc2+ {[%clk 0:01:29.4]} 30... g6 {[%clk
0:01:24.3]} 31. Rd4 {[%clk 0:01:20.4]} 31... Rc3 {[%clk 0:01:20.3]} 32. Qd2
{[%clk 0:01:16.2]} 32... Rc4 {[%clk 0:01:21.3]} 33. Rd7 {[%clk 0:01:11.7]} 33...
Nc3 {[%clk 0:01:17.5]} 34. Kh2 {[%clk 0:01:01.1]} 34... Kg7 {[%clk 0:01:16.8]}
35. Qd3 {[%clk 0:00:59.1]} 35... Ne4 {[%clk 0:01:12.8]} 36. Qd5 {[%clk
0:00:55.4]} 36... Nc3 {[%clk 0:00:34.7]} 37. Qb7 {[%clk 0:00:49.8]} 37... Rxb4
{[%clk 0:00:33.7]} 38. Qb8 {[%clk 0:00:38.8]} 38... Re4 {[%clk 0:00:24.9]} 39.
Rd6 {[%clk 0:00:33.3]} 39... Re8 {[%clk 0:00:21.4]} 40. Qc7 {[%clk 0:00:31.2]}
40... Re7 {[%clk 0:00:21.8]} 41. Qc5 {[%clk 0:00:27.9]} 41... Ne4 {[%clk
0:00:21.1]} 42. Rxf6 {[%clk 0:00:27.3]} 42... Nxc5 {[%clk 0:00:22.7]} 43. Rc6
{[%clk 0:00:28.1]} 43... Nd3 {[%clk 0:00:22.3]} 44. Kg3 {[%clk 0:00:25.2]} 44...
a5 {[%clk 0:00:21.6]} 45. Ra6 {[%clk 0:00:24.6]} 45... a4 {[%clk 0:00:22.4]} 46.
Nd4 {[%clk 0:00:25.1]} 46... Rb7 {[%clk 0:00:23.7]} 47. Nc6 {[%clk 0:00:22.1]}
47... Nc5 {[%clk 0:00:16.7]} 48. Ra5 {[%clk 0:00:20.5]} 48... b4 {[%clk
0:00:12.9]} 49. Rxc5 {[%clk 0:00:19.2]} 49... b3 {[%clk 0:00:14.4]} 50. Nd8
{[%clk 0:00:16]} 50... b2 {[%clk 0:00:13.9]} 51. Nxb7 {[%clk 0:00:16.5]} 51...
b1=Q {[%clk 0:00:15.3]} 52. Nd6 {[%clk 0:00:16.4]} 52... Qb8 {[%clk 0:00:12.9]}
53. Rd5 {[%clk 0:00:14.5]} 53... a3 {[%clk 0:00:14.5]} 54. f4 {[%clk 0:00:15]}
54... a2 {[%clk 0:00:15.9]} 55. Nc4 {[%clk 0:00:12.3]} 55... a1=Q {[%clk
0:00:16.6]} 56. Ne5 {[%clk 0:00:13]} 56... Qe1+ {[%clk 0:00:17.5]} 57. Kh2
{[%clk 0:00:12.5]} 57... Qxe3 {[%clk 0:00:17.7]} 0-1

[Event "*** Titled Tuesday 3|2 Blitz"]
[Site "Chess.com"]
[Date "2017.06.06"]
[Round "3"]
[White "temiksmozg"]
[Black "Keranke"]
[Result "0-1"]
[WhiteElo "2443"]
[BlackElo "2671"]
[TimeControl "180+2"]
[EndTime "14:29:01 PDT"]
[Termination "Keranke won on time"]

1. d4 {[%clk 0:02:53.7]} 1... g6 {[%clk 0:03:00.6]} 2. c4 {[%clk 0:02:54.7]}
2... Bg7 {[%clk 0:03:01.8]} 3. e4 {[%clk 0:02:56.3]} 3... d6 {[%clk 0:03:02.8]}
4. Nc3 {[%clk 0:02:57.6]} 4... Nc6 {[%clk 0:03:00.7]} 5. Be3 {[%clk 0:02:56.8]}
5... e5 {[%clk 0:03:01.6]} 6. Nge2 {[%clk 0:02:57.7]} 6... Nh6 {[%clk
0:02:51.4]} 7. f3 {[%clk 0:02:52]} 7... f5 {[%clk 0:02:51.9]} 8. d5 {[%clk
0:02:30.1]} 8... Ne7 {[%clk 0:02:47.4]} 9. h3 {[%clk 0:02:31.4]} 9... O-O {[%clk
0:02:47.2]} 10. Qd2 {[%clk 0:02:29.7]} 10... Nf7 {[%clk 0:02:45.1]} 11. g4
{[%clk 0:02:26]} 11... Kh8 {[%clk 0:02:42.9]} 12. O-O-O {[%clk 0:02:24.1]} 12...
c6 {[%clk 0:02:37.9]} 13. Kb1 {[%clk 0:02:23.1]} 13... cxd5 {[%clk 0:02:36.9]}
14. cxd5 {[%clk 0:02:22.9]} 14... Bd7 {[%clk 0:02:36.2]} 15. Nc1 {[%clk
0:02:20.6]} 15... a6 {[%clk 0:02:30.9]} 16. a3 {[%clk 0:02:09.4]} 16... b5
{[%clk 0:02:31.5]} 17. Nb3 {[%clk 0:01:58.1]} 17... Qb8 {[%clk 0:02:21.4]} 18.
Na2 {[%clk 0:01:57.6]} 18... Rc8 {[%clk 0:02:09.5]} 19. Bd3 {[%clk 0:01:49.3]}
19... Qc7 {[%clk 0:01:29.6]} 20. Qa5 {[%clk 0:01:38.8]} 20... Qxa5 {[%clk
0:01:17.2]} 21. Nxa5 {[%clk 0:01:40.7]} 21... Bh6 {[%clk 0:01:18.8]} 22. Bxh6
{[%clk 0:01:30.4]} 22... Nxh6 {[%clk 0:01:20.7]} 23. Rc1 {[%clk 0:01:25]} 23...
Nf7 {[%clk 0:01:18.9]} 24. gxf5 {[%clk 0:01:11.8]} 24... gxf5 {[%clk 0:01:20.8]}
25. h4 {[%clk 0:01:13.4]} 25... Ng6 {[%clk 0:01:11.8]} 26. exf5 {[%clk
0:01:09.2]} 26... Rxc1+ {[%clk 0:01:08.9]} 27. Nxc1 {[%clk 0:01:03.6]} 27... Nf4
{[%clk 0:01:09.7]} 28. Be4 {[%clk 0:01:03.3]} 28... Nh6 {[%clk 0:01:06.7]} 29.
Na2 {[%clk 0:00:43.9]} 29... Nxf5 {[%clk 0:01:05.4]} 30. Nb4 {[%clk 0:00:43.6]}
30... h5 {[%clk 0:00:53.8]} 31. Ka2 {[%clk 0:00:42.8]} 31... Kg7 {[%clk
0:00:35.5]} 32. Nb7 {[%clk 0:00:20.5]} 32... Ra7 {[%clk 0:00:31.5]} 33. Na5
{[%clk 0:00:19.8]} 33... Kf6 {[%clk 0:00:29.6]} 34. Nbc6 {[%clk 0:00:20.6]}
34... Ra8 {[%clk 0:00:30.4]} 35. Nb7 {[%clk 0:00:20.3]} 35... Rg8 {[%clk
0:00:29.2]} 36. Bxf5 {[%clk 0:00:20.9]} 36... Bxf5 {[%clk 0:00:28.9]} 37. Nxd6
{[%clk 0:00:22.8]} 37... Bh3 {[%clk 0:00:24.8]} 38. Ne4+ {[%clk 0:00:22.9]}
38... Kg7 {[%clk 0:00:21.6]} 39. Nxe5 {[%clk 0:00:23.8]} 39... Rd8 {[%clk
0:00:17.6]} 40. Rg1+ {[%clk 0:00:24.6]} 40... Kf8 {[%clk 0:00:14.9]} 41. d6
{[%clk 0:00:23.4]} 41... Be6+ {[%clk 0:00:14.6]} 42. b3 {[%clk 0:00:23.8]} 42...
a5 {[%clk 0:00:15.5]} 43. Kb2 {[%clk 0:00:24.9]} 43... Bd5 {[%clk 0:00:16.7]}
44. Ng6+ {[%clk 0:00:22.3]} 44... Nxg6 {[%clk 0:00:16.4]} 45. Rxg6 {[%clk
0:00:24.2]} 45... Kf7 {[%clk 0:00:17.2]} 46. Rh6 {[%clk 0:00:23.8]} 46... a4
{[%clk 0:00:17.4]} 47. b4 {[%clk 0:00:23.3]} 47... Rg8 {[%clk 0:00:13.2]} 48.
Ng5+ {[%clk 0:00:22.1]} 48... Ke8 {[%clk 0:00:13.4]} 49. Rxh5 {[%clk 0:00:20.4]}
49... Kd7 {[%clk 0:00:14.9]} 50. Nh7 {[%clk 0:00:18.8]} 50... Rg2+ {[%clk
0:00:15.3]} 51. Kc3 {[%clk 0:00:20.1]} 51... Kxd6 {[%clk 0:00:16.4]} 52. Rh6+
{[%clk 0:00:19.6]} 52... Kc7 {[%clk 0:00:17.1]} 53. Nf6 {[%clk 0:00:20.2]} 53...
Bxf3 {[%clk 0:00:17.3]} 54. Rh7+ {[%clk 0:00:19.4]} 54... Kd6 {[%clk 0:00:16.7]}
55. Rh8 {[%clk 0:00:17.1]} 55... Ra2 {[%clk 0:00:16.8]} 56. h5 {[%clk
0:00:17.2]} 56... Rxa3+ {[%clk 0:00:16.1]} 57. Kd4 {[%clk 0:00:18.6]} 57... Rb3
{[%clk 0:00:16.4]} 58. h6 {[%clk 0:00:16.6]} 58... a3 {[%clk 0:00:16]} 59. h7
{[%clk 0:00:12.6]} 59... a2 {[%clk 0:00:17.1]} 60. Rd8+ {[%clk 0:00:13]} 60...
Ke6 {[%clk 0:00:12.6]} 61. h8=Q {[%clk 0:00:12.1]} 61... a1=Q+ {[%clk
0:00:13.3]} 62. Kc5 {[%clk 0:00:13]} 62... Qe5+ {[%clk 0:00:08]} 63. Kb6 {[%clk
0:00:08.5]} 63... Qe3+ {[%clk 0:00:09.3]} 64. Kxb5 {[%clk 0:00:04.4]} 64... Be2+
{[%clk 0:00:08.6]} 65. Kc6 {[%clk 0:00:02.2]} 65... Qc3+ {[%clk 0:00:09.3]} 0-1

[Event "*** Titled Tuesday 3|2 Blitz"]
[Site "Chess.com"]
[Date "2017.06.06"]
[Round "3"]
[White "DanielNaroditsky"]
[Black "Pierrebl"]
[Result "1/2-1/2"]
[WhiteElo "2751"]
[BlackElo "2546"]
[TimeControl "180+2"]
[EndTime "14:29:07 PDT"]
[Termination "Game drawn by agreement"]

1. e4 {[%clk 0:03:02]} 1... c5 {[%clk 0:02:59.2]} 2. Nf3 {[%clk 0:03:02.6]} 2...
Nc6 {[%clk 0:03:00]} 3. Bb5 {[%clk 0:03:03.4]} 3... g6 {[%clk 0:03:00.6]} 4. O-O
{[%clk 0:03:04.6]} 4... Bg7 {[%clk 0:03:01.4]} 5. c3 {[%clk 0:03:06.1]} 5... Nf6
{[%clk 0:03:02.3]} 6. e5 {[%clk 0:03:07.5]} 6... Nd5 {[%clk 0:03:03.5]} 7. d4
{[%clk 0:03:09.1]} 7... cxd4 {[%clk 0:03:05]} 8. cxd4 {[%clk 0:03:11]} 8... O-O
{[%clk 0:03:06]} 9. Nc3 {[%clk 0:03:12.5]} 9... Nxc3 {[%clk 0:02:44.6]} 10. bxc3
{[%clk 0:03:14.4]} 10... d5 {[%clk 0:02:46.1]} 11. exd6 {[%clk 0:02:55.5]} 11...
Qxd6 {[%clk 0:02:46.5]} 12. a4 {[%clk 0:02:56]} 12... Bg4 {[%clk 0:02:39.8]} 13.
h3 {[%clk 0:02:53.2]} 13... Bxf3 {[%clk 0:02:37]} 14. Qxf3 {[%clk 0:02:55.1]}
14... Rfd8 {[%clk 0:02:25]} 15. Ba3 {[%clk 0:02:55.8]} 15... Qd5 {[%clk
0:02:26.3]} 16. Qxd5 {[%clk 0:02:45.8]} 16... Rxd5 {[%clk 0:02:27.2]} 17. Bxc6
{[%clk 0:02:47.7]} 17... bxc6 {[%clk 0:02:29.1]} 18. Bxe7 {[%clk 0:02:49.6]}
18... Bf8 {[%clk 0:02:30.6]} 19. Bxf8 {[%clk 0:02:44.3]} 19... Kxf8 {[%clk
0:02:30.6]} 20. Rab1 {[%clk 0:02:45.4]} 20... c5 {[%clk 0:02:11.1]} 21. Rb5
{[%clk 0:02:41.8]} 21... Rad8 {[%clk 0:02:12]} 22. dxc5 {[%clk 0:02:01]} 22...
Rc8 {[%clk 0:02:12.7]} 23. Rb7 {[%clk 0:02:01.1]} 23... Rcxc5 {[%clk 0:02:03.1]}
24. Rxa7 {[%clk 0:01:59.2]} 24... Rxc3 {[%clk 0:02:02.2]} 25. Re1 {[%clk
0:02:00]} 25... Rf5 {[%clk 0:01:46]} 26. f3 {[%clk 0:01:10.3]} 26... h5 {[%clk
0:01:33.4]} 27. Re4 {[%clk 0:01:10.4]} 27... Rc2 {[%clk 0:01:29.8]} 28. h4
{[%clk 0:01:09.3]} 28... Ra2 {[%clk 0:01:27.9]} 29. Rd4 {[%clk 0:00:51.9]} 29...
Kg7 {[%clk 0:00:52.9]} 30. Re4 {[%clk 0:00:51.8]} 30... Kf8 {[%clk 0:00:52.5]}
31. Rb7 {[%clk 0:00:52.3]} 31... Kg7 {[%clk 0:00:46]} 32. Rd7 {[%clk 0:00:34.7]}
32... Kf8 {[%clk 0:00:44.7]} 33. Rc7 {[%clk 0:00:36.3]} 33... Kg7 {[%clk
0:00:45.8]} 34. Rb7 {[%clk 0:00:37.8]} 34... Kf8 {[%clk 0:00:46.9]} 35. Rb5
{[%clk 0:00:39.3]} 35... Rf6 {[%clk 0:00:37.6]} 36. a5 {[%clk 0:00:40.6]} 36...
Rd6 {[%clk 0:00:36.7]} 37. Rf4 {[%clk 0:00:20.6]} 37... Rdd2 {[%clk 0:00:29.6]}
38. Rg5 {[%clk 0:00:22.1]} 38... Kg7 {[%clk 0:00:31]} 39. Rc4 {[%clk 0:00:22.8]}
39... Rd1+ {[%clk 0:00:24.2]} 40. Kh2 {[%clk 0:00:23.8]} 40... Rda1 {[%clk
0:00:24.3]} 41. Rcc5 {[%clk 0:00:24.5]} 41... Ra4 {[%clk 0:00:24.2]} 42. Kg3
{[%clk 0:00:24.2]} 42... Rd4 {[%clk 0:00:21.6]} 43. Rgd5 {[%clk 0:00:24.3]}
43... Rda4 {[%clk 0:00:20.1]} 44. Rg5 {[%clk 0:00:23]} 44... R1a2 {[%clk
0:00:20.9]} 45. Rb5 {[%clk 0:00:22.1]} 45... R2a3 {[%clk 0:00:22.1]} 46. Rgc5
{[%clk 0:00:22.6]} 46... Ra2 {[%clk 0:00:21.3]} 47. Rd5 {[%clk 0:00:23.9]} 47...
R2a3 {[%clk 0:00:21.1]} 48. Kh3 {[%clk 0:00:25.4]} 48... Ra2 {[%clk 0:00:21.1]}
49. Re5 {[%clk 0:00:21.3]} 49... R2a3 {[%clk 0:00:22.2]} 50. Rg5 {[%clk
0:00:22.7]} 50... Ra2 {[%clk 0:00:22.8]} 51. Kg3 {[%clk 0:00:23.6]} 51... R2a3
{[%clk 0:00:24]} 52. Rbc5 {[%clk 0:00:24.3]} 52... Ra2 {[%clk 0:00:25.1]} 53.
Rgd5 {[%clk 0:00:24.9]} 53... R4a3 {[%clk 0:00:26.1]} 54. Rb5 {[%clk 0:00:20]}
54... Ra4 {[%clk 0:00:27.3]} 55. Rdc5 {[%clk 0:00:18.1]} 55... R4a3 {[%clk
0:00:28.5]} 56. Rb7 {[%clk 0:00:19]} 56... Rxa5 {[%clk 0:00:28.7]} 57. Rcc7
{[%clk 0:00:20.6]} 57... Rf5 {[%clk 0:00:29.8]} 58. Rd7 {[%clk 0:00:22]} 58...
Ra4 {[%clk 0:00:30.1]} 59. Rbc7 {[%clk 0:00:22.7]} 59... Rb4 {[%clk 0:00:31.2]}
60. Ra7 {[%clk 0:00:23]} 60... Rc4 {[%clk 0:00:32.3]} 61. Rab7 {[%clk
0:00:24.1]} 61... Ra4 {[%clk 0:00:33.4]} 62. Rdc7 {[%clk 0:00:25.6]} 62... Rd4
{[%clk 0:00:34.1]} 63. Re7 {[%clk 0:00:26.9]} 63... Ra4 {[%clk 0:00:34.8]} 64.
Re4 {[%clk 0:00:26.1]} 64... Rxe4 {[%clk 0:00:31.9]} 65. fxe4 {[%clk 0:00:28]}
65... Re5 {[%clk 0:00:31.7]} 66. Kf4 {[%clk 0:00:28.8]} 66... Re6 {[%clk
0:00:31.7]} 67. e5 {[%clk 0:00:28.3]} 67... Ra6 {[%clk 0:00:32.2]} 68. g3 {[%clk
0:00:26.4]} 68... Ra4+ {[%clk 0:00:32.6]} 69. Kf3 {[%clk 0:00:27.6]} 69... Ra3+
{[%clk 0:00:33.7]} 70. Kf4 {[%clk 0:00:26.3]} 70... Ra4+ {[%clk 0:00:34.4]} 71.
Ke3 {[%clk 0:00:27.9]} 71... Ra3+ {[%clk 0:00:32.6]} 72. Kf2 {[%clk 0:00:23.3]}
72... Ra2+ {[%clk 0:00:32.9]} 73. Kf3 {[%clk 0:00:24.4]} 73... Ra3+ {[%clk
0:00:34]} 1/2-1/2